fUSD/lending_fUSD_20260321
["ID","MTS","AMOUNT","RATE_DAILY","PERIOD"]
[408695154,1774134640304,-500.0,0.00012922,2]
[408695155,1774134640314,-500.0,0.00012922,2]
[408695156,1774134640324,-500.0,0.00012922,2]
[408695157,1774134640334,-500.0,0.00012922,2]
[408695158,1774134640344,-500.0,0.00012922,2]
[408695159,1774134640354,-304.44203381,0.00012922,2]
[408695160,1774134640363,-500.0,0.00012922,2]
[408695161,1774134640373,-200.0,0.00012923,2]
[408695162,1774134640382,-200.0,0.00012923,2]
[408695163,1774134640391,-1311564.7717,0.00012923,2]
[408695164,1774134640401,-1005.39,0.0001293,2]
[408695165,1774134640410,-378.53301702,0.00012973,2]
[408695166,1774134640420,-500.0,0.00012973,2]
[408695167,1774134640429,-500.0,0.00012973,2]
[408695168,1774134640441,-500.0,0.00012973,2]
[408695169,1774134640452,-500.0,0.00012973,2]
[408695170,1774134640463,-500.0,0.00012973,2]
[408695171,1774134640472,-500.0,0.00012973,2]
[408695172,1774134640483,-314.12391646,0.00012973,2]
[408695173,1774134640492,-500.0,0.00012973,2]
[408695174,1774134640502,-500.0,0.00012973,2]
[408695175,1774134640511,-500.0,0.00012973,2]
[408695176,1774134640521,-200.0,0.00013052,2]
[408695177,1774134640534,-200.0,0.00013052,2]
[408695178,1774134640544,-5409.18799274,0.0001306,2]
[408695179,1774134640554,-116174.17803514,0.0001313,2]
[408695180,1774134640564,-2299.81306601,0.00013165,2]
[408695181,1774134640574,-200.0,0.00013183,2]
[408695182,1774134640584,-152.96986947,0.00013196,2]
[408695183,1774134640594,-663.45376797,0.00013263,2]
[408695184,1774134640605,-926.0,0.00013265,2]
[408695185,1774134640615,-200.0,0.00013315,2]
[408695186,1774134640626,-1038.0,0.00013369,2]
[408695187,1774134640636,-422.0,0.00013369,2]
[408695188,1774134640646,-259.4667415,0.00013395,2]
[408695189,1774134640655,-5409.18799274,0.00013415,2]
[408695190,1774134640665,-200.0,0.00013448,2]
[408695191,1774134640674,-274.35290573,0.00013462,2]
[408695192,1774134640683,-200.0,0.00013463,2]
[408695193,1774134640693,-2299.81306601,0.00013506,2]
[408695194,1774134640702,-1000.0,0.00013521,2]
[408695195,1774134640712,-1000.0,0.00013521,2]
[408695196,1774134640722,-500.0,0.00013521,2]
[408695197,1774134640731,-270.24774,0.00013521,2]
[408695198,1774134640740,-500.0,0.00013521,2]
[408695199,1774134640750,-500.48431933,0.00013521,2]
[408695200,1774134640760,-7807.84,0.00013522,2]
[408695201,1774134640769,-653.08642869,0.00013558,2]
[408695202,1774134640779,-1194.5,0.00013592,2]
[408695203,1774134640788,-150.0,0.00013603,2]
[408695204,1774134640797,-1426.64998223,0.00013684,2]
[408695205,1774134640807,-166.42,0.00013692,2]
[408695206,1774134640816,-500.0,0.00013698,2]
[408695207,1774134640826,-500.0,0.00013698,2]
[408695208,1774134640835,-500.0,0.00013698,2]
[408695209,1774134640844,-500.0,0.00013698,2]
[408695210,1774134640854,-500.0,0.00013698,2]
[408695211,1774134640863,-500.0,0.00013698,2]
[408695212,1774134640872,-500.0,0.00013698,2]
[408695213,1774134640882,-500.0,0.00013698,2]
[408695214,1774134640891,-569.64418973,0.00013698,2]
[408695215,1774134640900,-500.0,0.00013698,2]
[408695216,1774134640910,-500.0,0.00013698,2]
[408695217,1774134640919,-500.0,0.00013698,2]
[408695218,1774134640930,-500.0,0.00013698,2]
[408695219,1774134640940,-500.0,0.00013698,2]
[408695220,1774134640952,-500.0,0.00013698,2]
[408695221,1774134640961,-500.0,0.00013698,2]
[408695222,1774134640970,-500.0,0.00013698,2]
[408695223,1774134640980,-338.47316987,0.00013698,2]
[408695224,1774134640990,-500.0,0.00013698,2]
[408695225,1774134640999,-500.0,0.00013698,2]
[408695226,1774134641010,-500.0,0.00013698,2]
[408695227,1774134641019,-441.16865267,0.00013698,2]
[408695228,1774134641030,-500.0,0.00013698,2]
[408695229,1774134641040,-500.0,0.00013698,2]
[408695230,1774134641050,-500.0,0.00013698,2]
[408695231,1774134641061,-500.0,0.00013698,2]
[408695232,1774134641070,-500.0,0.00013698,2]
[408695233,1774134641079,-282.40708321,0.00013698,2]
[408695234,1774134641089,-354.1,0.00013699,2]
[408695235,1774134641098,-200.0,0.00013699,2]
[408695236,1774134641107,-1420.73,0.00013699,2]
[408695237,1774134641117,-176.25227146,0.00013699,2]
[408695238,1774134641126,-1039.09,0.000137,2]
[408695239,1774134641136,-790.66,0.000137,2]
[408695240,1774134641145,-751.58,0.000137,2]
[408695241,1774134641155,-1100.17,0.000137,2]
[408695242,1774134641164,-464.48,0.000137,2]
[408695243,1774134641175,-162.21,0.000137,2]
[408695244,1774134641184,-201.92,0.000137,2]
[408695245,1774134641194,-663.45376797,0.00013702,2]
[408695246,1774134641203,-259.97,0.00013709,2]
[408695247,1774134641213,-445.0,0.00013727,2]
[408695248,1774134641223,-2000.0,0.0001377,2]
[408695249,1774134641232,-5409.18799274,0.0001377,2]
[408695250,1774134641242,-389.88183382,0.000138,2]
[408695251,1774134641252,-500.0,0.000138,2]
[408695252,1774134641262,-500.0,0.000138,2]
[408695253,1774134641271,-500.0,0.000138,2]
[408695254,1774134641281,-500.0,0.000138,2]
[408695255,1774134641290,-159.7888568,0.00013836,2]
[408695256,1774134641311,-2299.81306601,0.00013848,2]
[408695257,1774134641320,-527.0,0.00013888,2]
[408695258,1774134641330,-255.0,0.00013925,2]
[408695259,1774134641340,-538.89,0.00013941,2]
[408695260,1774134641350,-1680.0,0.00013994,2]
[408695261,1774134641359,-171.64,0.00013995,2]
[408695262,1774134641369,-259.21928038,0.00013995,2]
[408695263,1774134641380,-500.0,0.00013995,2]
[408695264,1774134641390,-272.35600974,0.00013995,2]
[408695265,1774134641403,-506.0,0.00014,2]
[408695266,1774134641414,-200.0,0.00014011,2]
[408695267,1774134641426,-300.0,0.0001405,2]
[408695268,1774134641436,-300.0,0.0001405,2]
[408695269,1774134641451,-5000.0,0.0001405,2]
[408695270,1774134641462,-289.26112593,0.0001405,2]
[408695271,1774134641471,-300.0,0.0001405,2]
[408695272,1774134641482,-2505.55166651,0.00014057,2]
[408695273,1774134641491,-300.0,0.00014057,2]
[408695274,1774134641500,-502.62691089,0.00014068,2]
[408695275,1774134641510,-1000.0,0.00014068,2]
[408695276,1774134641521,-5000.0,0.0001408,2]
[408695277,1774134641530,-250.0,0.0001408,2]
[408695278,1774134641539,-195.0,0.00014086,2]
[408695279,1774134641549,-195.0,0.00014086,2]
[408695280,1774134641558,-195.0,0.00014086,2]
[408695281,1774134641568,-195.0,0.00014086,2]
[408695282,1774134641578,-5000.0,0.00014086,2]
[408695283,1774134641587,-5409.18799274,0.00014125,2]
[408695284,1774134641597,-663.45376797,0.00014142,2]
[408695285,1774134641606,-2299.81306601,0.0001419,2]
[408695286,1774134641616,-6209.87065696,0.00014365,2]
[408695287,1774134641625,-1420.73,0.00014384,2]
[408695288,1774134641635,-161.0,0.000144,2]
[408695289,1774134641645,-2403.0,0.000144,2]
[408695290,1774134641655,-1000.0,0.0001441,2]
[408695291,1774134641665,-259.97,0.00014471,2]
[408695292,1774134641675,-5409.18799274,0.0001448,2]
[408695293,1774134641685,-2299.81306601,0.00014531,2]
[408695294,1774134641694,-200.0,0.00014559,2]
[408695295,1774134641703,-663.45376797,0.00014581,2]
[408695296,1774134641713,-1010.99885533,0.00014595,2]
[408695297,1774134641722,-500.0,0.00014603,2]
[408695298,1774134641732,-161.0,0.0001472,2]
[408695299,1774134641742,-161.0,0.0001472,2]
[408695300,1774134641752,-16349.37,0.00014833,2]
[408695301,1774134641763,-5409.18799274,0.00014835,2]
[408695302,1774134641774,-159.7888568,0.00014849,2]
[408695303,1774134641784,-2299.81306601,0.00014873,2]
[408695304,1774134641794,-500.0,0.00014902,2]
[408695305,1774134641805,-500.0,0.00014902,2]
[408695306,1774134641815,-500.0,0.00014902,2]
[408695307,1774134641826,-500.0,0.00014902,2]
[408695308,1774134641836,-500.0,0.00014902,2]
[408695309,1774134641845,-250.0,0.00014902,2]
[408695310,1774134641854,-500.0,0.00014902,2]
[408695311,1774134641864,-250.0,0.00014902,2]
[408695312,1774134641873,-250.0,0.00014902,2]
[408695313,1774134642074,-500.0,0.00014902,2]
[408695314,1774134642089,-250.0,0.00014902,2]
[408695315,1774134642098,-250.0,0.00014902,2]
[408695316,1774134642108,-500.0,0.00014902,2]
[408695317,1774134642118,-268.3661478,0.00014902,2]
[408695318,1774134642128,-250.0,0.00014902,2]
[408695319,1774134642138,-500.0,0.00014902,2]
[408695320,1774134642148,-250.0,0.00014902,2]
[408695321,1774134642158,-500.0,0.00014902,2]
[408695322,1774134642171,-250.0,0.00014902,2]
[408695323,1774134642181,-500.0,0.00014902,2]
[408695324,1774134642191,-500.0,0.00014902,2]
[408695325,1774134642200,-250.0,0.00014902,2]
[408695326,1774134642210,-250.0,0.00014902,2]
[408695327,1774134642220,-250.0,0.00014902,2]
[408695328,1774134642230,-384.68684515,0.00014902,2]
[408695329,1774134642239,-588.27,0.00015,2]
[408695330,1774134642249,-250.0,0.00015,2]
[408695331,1774134642259,-160.0,0.0001501,2]
[408695332,1774134642269,-979.16666667,0.0001501,2]
[408695333,1774134642279,-160.0,0.0001501,2]
[408695334,1774134642289,-663.45376797,0.00015021,2]
[408695335,1774134642299,-1568.0,0.0001504,2]
[408695336,1774134642308,-2403.0,0.0001504,2]
[408695337,1774134642318,-2403.0,0.0001504,2]
[408695338,1774134642327,-1420.73,0.00015068,2]
[408695339,1774134642338,-1600.0,0.00015109,2]
[408695340,1774134642347,-433.0,0.00015117,2]
[408695341,1774134642357,-160.0,0.00015139,7]
[408695342,1774134642367,-5409.18799274,0.0001519,2]
[408695343,1774134642377,-2299.81306601,0.00015215,2]
[408695344,1774134642388,-259.97,0.00015232,2]
[408695345,1774134642399,-2000.0,0.000153,2]
[408695346,1774134642408,-22903.57,0.0001531,2]
[408695347,1774134642418,-3813.04,0.0001531,2]
[408695348,1774134642428,-161.0,0.0001536,2]
[408695349,1774134642438,-2403.0,0.0001536,2]
[408695350,1774134642451,-286.0,0.0001536,2]
[408695351,1774134642460,-2351.0,0.00015394,2]
[408695352,1774134642470,-500.0,0.00015448,2]
[408695353,1774134642479,-500.0,0.00015448,2]
[408695354,1774134642490,-500.0,0.00015448,2]
[408695355,1774134642500,-500.0,0.00015448,2]
[408695356,1774134642509,-500.0,0.00015448,2]
[408695357,1774134642521,-500.0,0.00015448,2]
[408695358,1774134642531,-500.0,0.00015448,2]
[408695359,1774134642541,-500.0,0.00015448,2]
[408695360,1774134642551,-500.0,0.00015448,2]
[408695361,1774134642560,-500.0,0.00015448,2]
[408695362,1774134642571,-500.0,0.00015448,2]
[408695363,1774134642580,-500.0,0.00015448,2]
[408695364,1774134642589,-500.0,0.00015448,2]
[408695365,1774134642599,-500.0,0.00015448,2]
[408695366,1774134642609,-500.0,0.00015448,2]
[408695367,1774134642619,-500.0,0.00015448,2]
[408695368,1774134642629,-500.0,0.00015448,2]
[408695369,1774134642638,-500.0,0.00015448,2]
[408695370,1774134642648,-500.0,0.00015448,2]
[408695371,1774134642658,-500.0,0.00015448,2]
[408695372,1774134642667,-500.0,0.00015448,2]
[408695373,1774134642677,-500.0,0.00015448,2]
[408695374,1774134642687,-500.0,0.00015448,2]
[408695375,1774134642697,-500.0,0.00015448,2]
[408695376,1774134642706,-516.42166311,0.00015448,2]
[408695377,1774134642716,-500.0,0.00015448,2]
[408695378,1774134642726,-500.0,0.00015448,2]
[408695379,1774134642735,-322.02411673,0.00015448,2]
[408695380,1774134642745,-500.0,0.00015448,2]
[408695381,1774134642755,-500.0,0.00015448,2]
[408695382,1774134642764,-500.0,0.00015448,2]
[408695383,1774134642774,-500.0,0.00015448,2]
[408695384,1774134642783,-500.0,0.00015448,2]
[408695385,1774134642793,-500.0,0.00015448,2]
[408695386,1774134642803,-500.0,0.00015448,2]
[408695387,1774134642813,-554.77661707,0.00015448,2]
[408695388,1774134642823,-693.0,0.00015448,2]
[408695389,1774134642832,-693.0,0.00015448,2]
[408695390,1774134642842,-500.0,0.00015448,2]
[408695391,1774134642851,-500.0,0.00015448,2]
[408695392,1774134642861,-693.0,0.00015448,2]
[408695393,1774134642870,-500.0,0.00015448,2]
[408695394,1774134642879,-500.0,0.00015448,2]
[408695395,1774134642888,-693.0,0.00015448,2]
[408695396,1774134642898,-500.0,0.00015448,2]
[408695397,1774134642908,-215.33010556,0.00015448,2]
[408695398,1774134642918,-693.0,0.00015448,2]
[408695399,1774134642931,-500.0,0.00015448,2]
[408695400,1774134642941,-693.0,0.00015448,2]
[408695401,1774134642951,-500.0,0.00015448,2]
[408695402,1774134642960,-693.0,0.00015448,2]
[408695403,1774134642970,-500.0,0.00015448,2]
[408695405,1774134642980,-500.0,0.00015448,2]
[408695408,1774134642990,-693.0,0.00015448,2]
[408695410,1774134643000,-500.0,0.00015448,2]
[408695412,1774134643009,-500.0,0.00015448,2]
[408695414,1774134643019,-500.0,0.00015448,2]
[408695415,1774134643029,-693.0,0.00015448,2]
[408695416,1774134643038,-500.0,0.00015448,2]
[408695417,1774134643057,-500.0,0.00015448,2]
[408695418,1774134643066,-500.0,0.00015448,2]
[408695420,1774134643076,-693.0,0.00015448,2]
[408695421,1774134643087,-246.79709611,0.00015448,2]
[408695422,1774134643097,-500.0,0.00015448,2]
[408695423,1774134643107,-500.0,0.00015448,2]
[408695424,1774134643118,-693.0,0.00015448,2]
[408695425,1774134643128,-256.16426944,0.00015448,2]
[408695426,1774134643139,-500.0,0.00015448,2]
[408695427,1774134643149,-693.0,0.00015448,2]
[408695428,1774134643159,-500.0,0.00015448,2]
[408695429,1774134643169,-693.0,0.00015448,2]
[408695430,1774134643179,-500.0,0.00015448,2]
[408695431,1774134643188,-693.0,0.00015448,2]
[408695432,1774134643198,-500.0,0.00015448,2]
[408695433,1774134643208,-693.0,0.00015448,2]
[408695434,1774134643218,-500.0,0.00015448,2]
[408695435,1774134643228,-693.0,0.00015448,2]
[408695436,1774134643238,-500.0,0.00015448,2]
[408695437,1774134643248,-500.0,0.00015448,2]
[408695438,1774134643258,-500.0,0.00015448,2]
[408695439,1774134643268,-500.0,0.00015448,2]
[408695440,1774134643278,-500.0,0.00015448,2]
[408695441,1774134643287,-500.0,0.00015448,2]
[408695442,1774134643297,-693.0,0.00015448,2]
[408695443,1774134643307,-500.0,0.00015448,2]
[408695444,1774134643318,-500.0,0.00015448,2]
[408695445,1774134643328,-500.0,0.00015448,2]
[408695446,1774134643339,-500.0,0.00015448,2]
[408695447,1774134643352,-500.0,0.00015448,2]
[408695448,1774134643361,-500.0,0.00015448,2]
[408695449,1774134643371,-500.0,0.00015448,2]
[408695450,1774134643380,-693.0,0.00015448,2]
[408695451,1774134643389,-500.0,0.00015448,2]
[408695452,1774134643399,-500.0,0.00015448,2]
[408695453,1774134643408,-372.33776627,0.00015448,2]
[408695454,1774134643417,-500.0,0.00015448,2]
[408695455,1774134643426,-500.0,0.00015448,2]
[408695456,1774134643436,-500.0,0.00015448,2]
[408695457,1774134643449,-261.70880193,0.00015448,2]
[408695458,1774134643459,-693.0,0.00015448,2]
[408695459,1774134643468,-500.0,0.00015448,2]
[408695460,1774134643477,-500.0,0.00015448,2]
[408695461,1774134643488,-500.0,0.00015448,2]
[408695462,1774134643498,-500.0,0.00015448,2]
[408695463,1774134643508,-500.0,0.00015448,2]
[408695464,1774134643517,-500.0,0.00015448,2]
[408695465,1774134643527,-500.0,0.00015448,2]
[408695466,1774134643536,-500.0,0.00015448,2]
[408695467,1774134643545,-500.0,0.00015448,2]
[408695468,1774134643555,-693.0,0.00015448,2]
[408695469,1774134643564,-500.0,0.00015448,2]
[408695470,1774134643574,-500.0,0.00015448,2]
[408695471,1774134643583,-500.0,0.00015448,2]
[408695472,1774134643593,-500.0,0.00015448,2]
[408695473,1774134643603,-500.0,0.00015448,2]
[408695474,1774134643612,-500.0,0.00015448,2]
[408695475,1774134643622,-266.24818512,0.00015448,2]
[408695476,1774134643631,-693.0,0.00015448,2]
[408695477,1774134643640,-693.0,0.00015448,2]
[408695478,1774134643650,-693.0,0.00015448,2]
[408695479,1774134643660,-715.0,0.00015448,2]
[408695480,1774134643669,-500.0,0.00015448,2]
[408695481,1774134643678,-500.0,0.00015448,2]
[408695482,1774134643687,-500.0,0.00015448,2]
[408695483,1774134643696,-500.0,0.00015448,2]
[408695484,1774134643706,-500.0,0.00015448,2]
[408695485,1774134643715,-500.0,0.00015448,2]
[408695486,1774134643724,-577.95065984,0.00015448,2]
[408695487,1774134643734,-663.45376797,0.0001546,2]
[408695488,1774134643743,-3240.0,0.00015501,2]
[408695489,1774134643752,-4000.0,0.00015507,2]
[408695490,1774134643762,-166.66,0.00015533,2]
[408695491,1774134643771,-2299.81306601,0.00015556,2]
[408695492,1774134643780,-438.89,0.00015571,2]
[408695493,1774134643790,-3137.087,0.00015582,2]
[408695494,1774134643799,-157.067,0.00015582,2]
[408695495,1774134643808,-723.0,0.00015584,2]
[408695496,1774134643817,-2403.0,0.00015585,2]
[408695497,1774134643827,-1568.0,0.00015585,2]
[408695498,1774134643836,-350.0,0.00015593,2]
[408695499,1774134643845,-441.7,0.00015611,2]
[408695500,1774134643855,-350.0,0.00015615,2]
[408695501,1774134643864,-325.0,0.00015671,2]
[408695502,1774134643874,-1215.0,0.00015672,2]
[408695503,1774134643883,-924.0,0.00015672,2]
[408695504,1774134643892,-6007.0,0.00015682,2]
[408695505,1774134643901,-2466.0,0.00015682,2]
[408695506,1774134643911,-476.16518659,0.00015699,2]
[408695507,1774134643920,-2997.0,0.000157,2]
[408695508,1774134643930,-723.0,0.00015744,2]
[408695509,1774134643940,-1420.73,0.00015753,2]
[408695510,1774134643949,-723.0,0.00015788,2]
[408695511,1774134643958,-464.48,0.000158,2]
[408695512,1774134643968,-201.92,0.000158,2]
[408695513,1774134643977,-723.0,0.00015859,2]
[408695514,1774134643986,-159.7888568,0.00015862,2]
[408695515,1774134643995,-500.0,0.00015872,2]
[408695516,1774134644005,-4000.0,0.00015895,2]
[408695517,1774134644014,-723.0,0.00015897,2]
[408695518,1774134644023,-2299.81306601,0.00015898,2]
[408695519,1774134644033,-751.58,0.000159,2]
[408695520,1774134644043,-6209.87065696,0.000159,2]
[408695521,1774134644053,-663.45376797,0.000159,2]
[408695522,1774134644063,-1159.33,0.00015913,2]
[408695523,1774134644072,-163.501002,0.00015946,2]
[408695524,1774134644082,-500.0,0.00015973,2]
[408695525,1774134644091,-500.0,0.00015973,2]
[408695526,1774134644101,-500.0,0.00015973,2]
[408695527,1774134644110,-500.0,0.00015973,2]
[408695528,1774134644119,-500.0,0.00015973,2]
[408695529,1774134644129,-500.0,0.00015973,2]
[408695530,1774134644138,-226.57620935,0.00015973,2]
[408695531,1774134644148,-500.0,0.00015973,2]
[408695532,1774134644157,-500.0,0.00015973,2]
[408695533,1774134644167,-500.0,0.00015973,2]
[408695534,1774134644176,-500.0,0.00015973,2]
[408695535,1774134644186,-500.0,0.00015973,2]
[408695536,1774134644196,-500.0,0.00015973,2]
[408695537,1774134644205,-500.0,0.00015973,2]
[408695538,1774134644215,-500.0,0.00015973,2]
[408695539,1774134644224,-500.0,0.00015973,2]
[408695540,1774134644233,-500.0,0.00015973,2]
[408695541,1774134644243,-500.0,0.00015973,2]
[408695542,1774134644252,-500.0,0.00015973,2]
[408695543,1774134644261,-500.0,0.00015973,2]
[408695544,1774134644271,-500.0,0.00015973,2]
[408695545,1774134644280,-500.0,0.00015973,2]
[408695546,1774134644290,-500.0,0.00015973,2]
[408695547,1774134644300,-500.0,0.00015973,2]
[408695548,1774134644309,-163.0,0.00015986,2]
[408695549,1774134644318,-162.0,0.00015986,2]
[408695550,1774134644328,-259.97,0.00015994,2]
[408695551,1774134644339,-161.0,0.00015995,2]
[408695552,1774134644349,-151.0,0.00015997,2]
[408695553,1774134644360,-2324.6618381,0.00015998,2]
[408695554,1774134644369,-1006664.4707938,0.00015998,2]
[408695555,1774134644380,-151.0,0.00015998,2]
[408695556,1774134644389,-151.0,0.00015998,2]
[408695557,1774134644398,-151.0,0.00015998,2]
[408695558,1774134644409,-151.0,0.00015998,2]
[408695559,1774134644418,-151.0,0.00015998,2]
[408695560,1774134644427,-151.0,0.00015998,2]
[408695561,1774134644436,-821.609836,0.00015998,2]
[408695562,1774134644450,-821.609836,0.00015998,2]
[408695563,1774134644460,-821.609836,0.00015998,2]
[408695564,1774134644469,-821.609836,0.00015998,2]
[408695565,1774134644478,-151.0,0.00015998,2]
[408695566,1774134644489,-151.0,0.00015998,2]
[408695567,1774134644499,-151.0,0.00015998,2]
[408695568,1774134644508,-151.0,0.00015998,2]
[408695569,1774134644519,-151.0,0.00015998,2]
[408695570,1774134644530,-262.198233,0.00015998,2]
[408695571,1774134644540,-204.966934,0.00015998,2]
[408695572,1774134644550,-392.943174,0.00015998,2]
[408695573,1774134644559,-392.943174,0.00015998,2]
[408695574,1774134644569,-392.943174,0.00015998,2]
[408695575,1774134644578,-392.943174,0.00015998,2]
[408695576,1774134644588,-151.0,0.00015998,2]
[408695577,1774134644597,-151.0,0.00015998,2]
[408695578,1774134644607,-151.0,0.00015998,2]
[408695579,1774134644617,-281.51699,0.00015998,2]
[408695580,1774134644628,-281.51699,0.00015998,2]
[408695581,1774134644639,-1264.078394,0.00015998,2]
[408695582,1774134644649,-281.51699,0.00015998,2]
[408695583,1774134644658,-1264.078394,0.00015998,2]
[408695584,1774134644668,-281.51699,0.00015998,2]
[408695585,1774134644678,-1264.078394,0.00015998,2]
[408695586,1774134644687,-1264.078394,0.00015998,2]
[408695587,1774134644697,-151.0,0.00015998,2]
[408695588,1774134644707,-3001621.10054826,0.00016,2]
[408695589,1774134644716,-1171498.56350867,0.00016,2]
[408695604,1774134645470,-281.70173649,0.00013698,2]
[408695605,1774134645480,-3759.0,0.00015682,2]
[408695606,1774134645490,-125210.63123782,0.00016,2]
[408695607,1774134645641,-647.58766901,0.00016,2]
[408695615,1774134656997,5000.01,0.00012723,2]
[408695616,1774134657022,5000.01,0.00012723,2]
[408695617,1774134657045,5000.01,0.00012723,2]
[408695618,1774134657068,5000.01,0.00012723,2]
[408695619,1774134661169,300.0,0.00012722,2]
[408695620,1774134666942,173.0,0.00012723,2]
[408695621,1774134668332,182.0,0.00012723,2]
[408695622,1774134721192,300.0,0.00012722,2]
[408695623,1774134722028,150.0,0.00012722,2]
[408695624,1774134722704,300.0,0.00012722,2]
[408695625,1774134821936,851.0,0.00012722,2]
[408695626,1774134841132,300.0,0.00012722,2]
[408695627,1774134891197,208.17004375,0.00012722,2]
[408695628,1774134891236,337.57422578,0.00012722,2]
[408695629,1774134891717,500.0,0.00012722,2]
[408695630,1774134891814,237.12722866,0.00012722,2]
[408695631,1774134894297,500.0,0.00012722,2]
[408695632,1774134894325,179.21380524,0.00012722,2]
[408695633,1774134894358,500.0,0.00012722,2]
[408695634,1774134894388,500.0,0.00012722,2]
[408695635,1774134894420,500.0,0.00012722,2]
[408695636,1774134894451,500.0,0.00012722,2]
[408695637,1774134894479,179.42795835,0.00012722,2]
[408695638,1774134894509,500.0,0.00012722,2]
[408695639,1774134894541,500.0,0.00012722,2]
[408695640,1774134894572,186.56448977,0.00012722,2]
[408695641,1774134894608,500.0,0.00012722,2]
[408695642,1774134894636,500.0,0.00012722,2]
[408695643,1774134894665,500.0,0.00012722,2]
[408695644,1774134894695,500.0,0.00012722,2]
[408695645,1774134894724,115.93224845,0.00012722,2]
[408695646,1774134894750,384.06775155,0.00012722,2]
[408695647,1774134894779,500.0,0.00012722,2]
[408695648,1774134894808,500.0,0.00012722,2]
[408695649,1774134894845,500.0,0.00012722,2]
[408695650,1774134894875,500.0,0.00012722,2]
[408695651,1774134894919,500.0,0.00012722,2]
[408695652,1774134894954,500.0,0.00012722,2]
[408695653,1774134894993,500.0,0.00012722,2]
[408695654,1774134895029,500.0,0.00012722,2]
[408695655,1774134895109,500.0,0.00012722,2]
[408695656,1774134895155,500.0,0.00012722,2]
[408695657,1774134895246,500.0,0.00012722,2]
[408695658,1774134895303,500.0,0.00012722,2]
[408695659,1774134895347,500.0,0.00012722,2]
[408695660,1774134895391,500.0,0.00012722,2]
[408695661,1774134895431,500.0,0.00012722,2]
[408695662,1774134895480,500.0,0.00012722,2]
[408695663,1774134901074,1200.0,0.00012722,2]
[408695664,1774134901106,300.0,0.00012722,2]
[408695665,1774134901132,115.94224845,0.00012722,2]
[408695666,1774134901154,184.05775155,0.00012722,2]
[408695667,1774134902103,150.0,0.00012722,2]
[408695668,1774134902890,300.0,0.00012722,2]
[408695669,1774134903837,1878.93,0.00011507,2]
[408695670,1774134964648,200.0,0.000127,2]
[408695671,1774134989960,483.44806507,0.00012722,2]
[408695672,1774134991276,500.0,0.00012722,2]
[408695673,1774134991346,500.0,0.00012722,2]
[408695674,1774134991412,500.0,0.00012722,2]
[408695675,1774134991447,389.35541516,0.00012722,2]
[408695676,1774134991562,500.0,0.00012722,2]
[408695677,1774135021728,166.66,0.00012709,2]
[408695678,1774135032185,577.41967509,0.00012722,2]
[408695679,1774135037136,151.0,0.00012723,2]
[408695680,1774135037789,151.0,0.00012723,2]
[408695681,1774135038378,151.0,0.00012723,2]